Company(T),Trans.date,Supplier Name(T),TransNo,Amount,Irrecoverable VAT,Service/Dept(T),Procurement Category,Account code,Account code(T),Narrative/Purpose of Spend,Govt Procurement card
East Cambridgeshire District Council,24/02/2016,University of Birmingham  ,5104595,350,,Training,Employees,1131,Training - Expenses,Accommodation Redacted Personal Data,Y
East Cambridgeshire District Council,24/02/2016,CIEH,5104595,380,,Training,Employees,1135,Training - External,Conference Redacted Personal Data,Y
East Cambridgeshire District Council,24/02/2016,CIEH,5104595,279,,Training,Employees,1135,Training - External,HHSRS Course Redacted Personal Data,Y
East Cambridgeshire District Council,16/02/2016,Local World Ltd - Cambridge Newspapers,634867,940,,Human Resources,Employees,1140,Staff Advertising,11th & 13th Feb 2016 cambridge news,
East Cambridgeshire District Council,24/02/2016,PASS ,5104595,34.94,,The Grange,Premises,2010,Premises Materials,PAT Labels,Y
East Cambridgeshire District Council,24/02/2016,Door stuff ,5104595,56.97,,The Grange,Premises,2010,Premises Materials,Door Selector,Y
East Cambridgeshire District Council,09/02/2016,Airelec Maintenance Ltd,634820,530,,The Grange,Premises,2020,Premises Contract Work,Supply & install spare parts to AC unit Grd Floor,
East Cambridgeshire District Council,22/02/2016,C D Clowe,634918,"1,086.30",,Travellers Site - Earith Bridge,Premises,2020,Premises Contract Work,Annual electrical installation condition reports Earith Bridge,
East Cambridgeshire District Council,03/02/2016,Arbantia Limited,634783,"5,380.00",,Travellers Site - Wentworth,Premises,2030,Premises Asset Management,Refurbishment of fencing at Wentworth Travellers Site,
East Cambridgeshire District Council,09/02/2016,C D Clowe,634832,734.4,,The Grange,Premises,2030,Premises Asset Management,48 circuits Wentworth TS 5/2/16,
East Cambridgeshire District Council,09/02/2016,C D Clowe,634833,"1,218.12",,The Grange,Premises,2030,Premises Asset Management,LED Lighting for Attic & stairway & add costs for emergency backup,
East Cambridgeshire District Council,17/02/2016,Clarity Homes Ltd,634900,"4,342.71",,"PC Fountain Lane, Soham",Premises,2030,Premises Asset Management,Fountain Lane Car Park Soham,
East Cambridgeshire District Council,23/02/2016,Carter Jonas,634916,"2,000.00",,Asset Management,Premises,2030,Premises Asset Management,Reconfigure Barton Road Car Park,
East Cambridgeshire District Council,22/02/2016,C D Clowe,634917,"2,464.19",,The Grange,Premises,2030,Premises Asset Management,The Grange 23/24 Jan 16,
East Cambridgeshire District Council,22/02/2016,Pickerings Europe Ltd,634933,"24,125.00",,Asset Management,Premises,2030,Premises Asset Management,Hydraulic Lift,
East Cambridgeshire District Council,26/02/2016,SGS Associates Ltd,634952,555,,Asset Management,Premises,2030,Premises Asset Management,Barton Close Witchford,
East Cambridgeshire District Council,21/01/2016,Southern Electric,1133173,"1,829.77",,Portley Hill Littleport Depot,Premises,2110,Electricity,4229351217 Littleport Depot Ely Road,
East Cambridgeshire District Council,19/02/2016,Southern Electric,1133578,"1,152.76",,E Space South,Premises,2110,Electricity,71326441 E-Space South,
East Cambridgeshire District Council,19/02/2016,Southern Electric,1133583,541.48,,"PC Cloisters, Ely",Premises,2110,Electricity,"191328221 Public toilets, Cloisters",
East Cambridgeshire District Council,19/02/2016,Southern Electric,1133584,"1,326.59",,Portley Hill Littleport Depot,Premises,2110,Electricity,271330285 Littleport Depot,
East Cambridgeshire District Council,19/02/2016,Southern Electric,1133585,"2,488.04",,The Grange,Premises,2110,Electricity,"311425840 The Grange, Nutholt Lane",
East Cambridgeshire District Council,19/02/2016,Southern Electric,1133586,968.03,,The Grange,Premises,2110,Electricity,"551327357 Office services, The Grange",
East Cambridgeshire District Council,19/02/2016,Southern Electric,1133592,"-1,829.77",,Portley Hill Littleport Depot,Premises,2110,Electricity,271330285 Littleport Depot,
East Cambridgeshire District Council,27/01/2016,ESPO,1133259,983.6,,The Grange,Premises,2120,Gas,M040A0173612A6 The Grange 30/11/15-31/12/15,
East Cambridgeshire District Council,27/01/2016,ESPO,1133262,772.39,,E Space North,Premises,2120,Gas,M025A0234205A6 ESpace North 31/10/15-31/12/15,
East Cambridgeshire District Council,27/01/2016,ESPO,1133265,702.23,,E Space North,Premises,2120,Gas,M025A0234205A6 ESpace North 31/10/15-31/12/15,
East Cambridgeshire District Council,11/02/2016,ESPO,1133518,738.4,,E Space North,Premises,2120,Gas,M025A0234205A6 31/12/15-31/1/16,
East Cambridgeshire District Council,11/02/2016,ESPO,1133521,"1,298.75",,The Grange,Premises,2120,Gas,M040A0173612A6 31/12/15-31/1/16,
East Cambridgeshire District Council,27/01/2016,ESPO,1133266,-772.39,,E Space North,Premises,2120,Gas,M025A0234205A6 ESpace North 31/10/15-31/12/15,
East Cambridgeshire District Council,11/02/2016,Cheffins,1133514,"2,142.09",,Country Park,Premises,2215,Leases,Rent 16/1/16-15/1/17 - The Park Cherry Hill Ely,
East Cambridgeshire District Council,08/02/2016,Anglian Water,1133508,"1,836.48",,"PC Fountain Lane, Soham",Premises,2410,Water Rates,Account number 113045884 Public Toilets Fountain Lane,
East Cambridgeshire District Council,08/02/2016,Anglian Water,1133508,"1,944.27",,"PC Fountain Lane, Soham",Premises,2411,Sewerage Charge,Account number 113045884 Public Toilets Fountain Lane,
East Cambridgeshire District Council,12/02/2016,Dal Rod,634859,"1,300.00",,Travellers Site - Earith Bridge,Premises,2820,Grounds Contract Work,Earith Bridge Travellers Site - Gullies,
East Cambridgeshire District Council,15/02/2016,Dal Rod,634860,"1,410.00",,Travellers Site - Earith Bridge,Premises,2820,Grounds Contract Work,Earith Bridge Travellers Site - Run to Ditch,
East Cambridgeshire District Council,22/02/2016,JF Staples,634937,"1,060.00",,Award Ditches,Premises,2820,Grounds Contract Work,Cleaning Ditches 10/11/15-18/1/16,
East Cambridgeshire District Council,01/02/2016,Commercial Services Trading Ltd,1133386,"1,450.80",120.97,Leased Cars,Transport,3010,Vehicle Repairs,AY12 XOV 29/3/12-15/1/16 Excess mileage,
East Cambridgeshire District Council,03/02/2016,Be Fuelcards,1133465,550.83,,Sanctuary Grasscutting,Transport,3021,Derv,Fuelcards January 2016,
East Cambridgeshire District Council,08/02/2016,Post Office Ltd,1133483,650,,Street Cleansing,Transport,3024,Vehicle Excise Duty,R799 BHU Road Fund Licence 2016,
East Cambridgeshire District Council,04/02/2016,Commercial Services Trading Ltd,1133466,"4,473.84",368.29,Leased Cars,Transport,3051,Purchase Vehicles,AJ65KPN - Redacted Personal Data - 15/1/15-14/1/16,
East Cambridgeshire District Council,19/02/2016,Commercial Services Trading Ltd,1133593,"4,473.84",368.29,Leased Cars,Transport,3051,Purchase Vehicles,AJ65KPN-Redacted Personal Data 15/1/16-14/1/17,
East Cambridgeshire District Council,01/02/2016,Commercial Services Trading Ltd,1133385,"-1,123.99",-93.72,Leased Cars,Transport,3051,Purchase Vehicles,AY12 XOV 14/1/16-28/3/16,
East Cambridgeshire District Council,24/02/2016,Cooler aid Ltd,1133608,"1,830.60",,The Grange,Supplies and Services,4012,Equipment - Vending Machines,Yearly rental due 2/2/16 & 10/2/16,
East Cambridgeshire District Council,15/02/2016,Konica Minolta Business Solutions East Ltd,1133559,"3,142.80",,Printing/Copying,Supplies and Services,4013,Equipment - Hire,1/2/16-30/4/16,
East Cambridgeshire District Council,01/02/2016,Bunzl  Cleaning & Hygiene Supplies,634755,691.95,,The Grange,Supplies and Services,4030,Materials - Purchase,,
East Cambridgeshire District Council,04/02/2016,Park Retail Ltd t/as Love2Reward,634791,980,,Recycling Reward Scheme,Supplies and Services,4030,Materials - Purchase,,
East Cambridgeshire District Council,05/02/2016,Cambridge Marketing Ltd,634807,"2,620.00",,Marketing & Grants,Supplies and Services,4310,Printing & Stationery,Ely Visitor Guide 2016,
East Cambridgeshire District Council,10/02/2016,Corporate Mailing Solutions,634840,"4,437.69",,County Council Elections,Supplies and Services,4310,Printing & Stationery,Sutton By-Election,
East Cambridgeshire District Council,11/02/2016,Zenith Media,634846,"3,486.00",,Marketing & Grants,Supplies and Services,4310,Printing & Stationery,Visitor Guide 2016,
East Cambridgeshire District Council,24/02/2016,Shaw & Sons Ltd,634949,950.55,,Police & Crime Commissioners Elections,Supplies and Services,4310,Printing & Stationery,Police & Crime Comm - Refill for Presiding Officers Pack,
East Cambridgeshire District Council,04/02/2016,Sonovate Ltd,634793,935.34,,Env Health Food,Supplies and Services,4401,Agency Workers,Redacted Personal Data - Period Ending 31/1/16 & Mileage for Dec 2015 & Jan 2016,
East Cambridgeshire District Council,04/02/2016,LabourTech Recruitment Ltd,634801,548.68,,The Grange,Supplies and Services,4401,Agency Workers,Redacted Personal Data - Week Ending 31/1/16,
East Cambridgeshire District Council,05/02/2016,Matchtech Group Ltd,634810,"1,462.50",,Planning,Supplies and Services,4401,Agency Workers,Redacted Personal Data - week commencing 25/1/16,
East Cambridgeshire District Council,29/01/2016,Matchtech Group Ltd,634811,"1,462.50",,Planning,Supplies and Services,4401,Agency Workers,Redacted Personal Data - Week Commencing 18/1/16,
East Cambridgeshire District Council,10/02/2016,LabourTech Recruitment Ltd,634842,642.25,,The Grange,Supplies and Services,4401,Agency Workers,Redacted Personal Data - Week Ending 7/2/16,
East Cambridgeshire District Council,11/02/2016,Sonovate Ltd,634843,929.43,,Env Health Food,Supplies and Services,4401,Agency Workers,Redacted Personal Data - Week Ending 7/2/16,
East Cambridgeshire District Council,15/02/2016,Matchtech Group Ltd,634865,"1,462.50",,Planning,Supplies and Services,4401,Agency Workers,Redacted Personal Data - Week Commencing 1/2/16,
East Cambridgeshire District Council,18/02/2016,Sonovate Ltd,634896,838.95,,Env Health Food,Supplies and Services,4401,Agency Workers,Redacted Personal Data - Week Ending 14/2/16,
East Cambridgeshire District Council,22/02/2016,Matchtech Group Ltd,634915,"1,462.11",,Planning,Supplies and Services,4401,Agency Workers,Redacted Personal Data W/C 8/2/16,
East Cambridgeshire District Council,25/02/2016,Sonovate Ltd,634947,847.18,,Env Health Food,Supplies and Services,4401,Agency Workers,Redacted Personal Data - Week Ending 21/2/16,
East Cambridgeshire District Council,25/02/2016,LabourTech Recruitment Ltd,634948,542.1,,The Grange,Supplies and Services,4401,Agency Workers,Redacted Personal Data - Week Ending 21/2/16,
East Cambridgeshire District Council,10/02/2016,G4S Cash Solutions (UK) Ltd,1133507,822.99,,Angel Drove Commuters Car Park,Supplies and Services,4412,Courier Service,contract 3342504 services between 1/3/16-31/3/16,
East Cambridgeshire District Council,15/02/2016,Cambridge University Hospitals NHS,1133558,553,,Human Resources,Supplies and Services,4416,Occupational Health,Occupational Health January 2016,
East Cambridgeshire District Council,24/02/2016,Amazon ,5104595,43.32,,Human Resources,Supplies and Services,4416,Occupational Health,Ergonomic Mouse,Y
East Cambridgeshire District Council,30/01/2016,Cheffins,634797,"1,598.50",,Homelessness Prevention,Supplies and Services,4421,Sanctuary Homelessness/Rent Deposit,Redacted Personal Data,
East Cambridgeshire District Council,31/01/2016,Peter Michael Estate Agents Ltd,634802,"1,800.00",,Homelessness Prevention,Supplies and Services,4421,Sanctuary Homelessness/Rent Deposit,Redacted Personal Data,
East Cambridgeshire District Council,29/01/2016,Redacted Personal Data,634804,"1,812.50",,Homelessness Prevention,Supplies and Services,4421,Sanctuary Homelessness/Rent Deposit,Deposit & rent Redacted Personal Data,
East Cambridgeshire District Council,16/02/2016,Redacted Personal Data,634886,700,,Homelessness Prevention,Supplies and Services,4421,Sanctuary Homelessness/Rent Deposit,Redacted Personal Data,
East Cambridgeshire District Council,25/02/2016,Peter Michael Estate Agents Ltd,634950,"1,088.00",,Homelessness Prevention,Supplies and Services,4421,Sanctuary Homelessness/Rent Deposit,Redacted Personal Data,
East Cambridgeshire District Council,25/02/2016,Let 365 Co Ltd,634951,650,,Homelessness Prevention,Supplies and Services,4421,Sanctuary Homelessness/Rent Deposit,Redacted Personal Data,
East Cambridgeshire District Council,22/01/2016,King Street Housing Society Ltd,1133177,742.5,,Homelessness Prevention,Supplies and Services,4421,Sanctuary Homelessness/Rent Deposit,Redacted Personal Data,
East Cambridgeshire District Council,12/02/2016,Jokensons Ltd,1133540,"4,797.80",,Dog Warden Scheme,Supplies and Services,4424,Kennelling,Additional day cover & Retainer charge for Nov-Dec16,
East Cambridgeshire District Council,31/01/2016,Hutchinsons,634790,"3,325.82",,Planning,Supplies and Services,4430,Consultants Fees,Planning Appeal - Redacted Personal Data,
East Cambridgeshire District Council,02/02/2016,Urban Agenda,634794,"12,000.00",,Management Team,Supplies and Services,4430,Consultants Fees,Provision of Development Consultancy Services 1/1/16-31/1/16,
East Cambridgeshire District Council,02/02/2016,Strutt & Parker LLP,634834,"2,106.89",,North Ely,Supplies and Services,4430,Consultants Fees,4 days Planning conultancy,
East Cambridgeshire District Council,12/02/2016,South Cambridgeshire District Council,634853,"4,690.00",,Local Plan Preparation,Supplies and Services,4430,Consultants Fees,Gypsy & Travellers Accommodation,
East Cambridgeshire District Council,10/02/2016,Carter Jonas,634858,950,,Asset Management,Supplies and Services,4430,Consultants Fees,Market Place Ely,
East Cambridgeshire District Council,10/02/2016,KJ Francis,634890,922.8,,Management Team,Supplies and Services,4430,Consultants Fees,Land & Development Services,
East Cambridgeshire District Council,30/01/2016,Trowers & Hamlins LLP,634897,"1,950.00",,Management Team,Supplies and Services,4430,Consultants Fees,Professional Fee in respect of ECDC Co to 31/12/15,
East Cambridgeshire District Council,15/02/2016,Peterborough City Council,634927,"48,564.55",,Local Plan Preparation,Supplies and Services,4430,Consultants Fees,Staff Support Services Q3 2015/16,
East Cambridgeshire District Council,05/02/2016,Ernst & Young LLP,1133474,"14,177.00",,Corp.Man.Policy Research/Review,Supplies and Services,4441,District Audit Fees,Third Quarter - Audit Service,
East Cambridgeshire District Council,18/01/2016,Purchase Power,634792,"3,039.00",,E Space North,Supplies and Services,4510,Postage,"Meter Reset & Transaction Fee 16/12/15, 4/1/16 & 8/1/16",
East Cambridgeshire District Council,16/02/2016,Neopost Ltd,1133566,"3,000.00",,DMS,Supplies and Services,4510,Postage,Postage recredit 15/1/16-5/2/16,
East Cambridgeshire District Council,29/01/2016,Ip-Xchange Ltd,1133279,"1,452.64",,E Space South,Supplies and Services,4520,Telephone,ESpace South,
East Cambridgeshire District Council,29/01/2016,Ip-Xchange Ltd,1133280,"1,384.90",,E Space North,Supplies and Services,4520,Telephone,ESpace North,
East Cambridgeshire District Council,03/02/2016,Virgin Media Payments - 923467,1133574,903.88,,Information Technology,Supplies and Services,4522,Contributions (IT Only CCN),Account 923467 1/2/16-29/2/16,
East Cambridgeshire District Council,24/02/2016,Steve Mellor Supplies Ltd,5104595,11.4,,Information Technology,Supplies and Services,4551,Hardware Purchases/Maint,Cleaning Card,Y
East Cambridgeshire District Council,05/02/2016,Optimum Precision Engineering Ltd,634805,"2,000.00",,Economic Development Admin,Supplies and Services,4710,Grants,Apprenticeship Grant Funding,
East Cambridgeshire District Council,18/02/2016,Alive! - An ideas agency,634908,"4,189.00",,Community Safety,Supplies and Services,4713,Grants-Contributions,500 x lets talk about it packs,
East Cambridgeshire District Council,03/02/2016,LARAC,1133402,"1,976.08",,Recycling Reward Scheme,Supplies and Services,4713,Grants-Contributions,Contribution WNC Reward & recognition Best Practice Programme,
East Cambridgeshire District Council,04/02/2016,Ely Museum,634809,"5,684.75",,The Old Gaol House,Supplies and Services,4714,Grants-Ely Museum,4th Quarter Instalment of Revenue Grant for 2015/16,
East Cambridgeshire District Council,03/02/2016,Bemrose Mobile Ltd,1133390,776.96,,Angel Drove Commuters Car Park,Supplies and Services,4910,Other Payments,Phone & pay parking service charge,
East Cambridgeshire District Council,09/02/2016,Unison (10455),1133492,626.9,,Payroll,Supplies and Services,4910,Other Payments,Membership January 2016,
East Cambridgeshire District Council,10/02/2016,Futureheat Plumbing Heating & Mechanical Services Ltd,1133511,"1,732.93",,Home Improvement Agency Services,Supplies and Services,4938,Client Contribution,Redacted Personal Data - 15/00104/DFG,
East Cambridgeshire District Council,18/02/2016,Redacted Personal Data,1133570,"2,000.00",,Home Improvement Agency Services,Supplies and Services,4938,Client Contribution,C & R - Redacted Personal Data - Bal of Invoice,
East Cambridgeshire District Council,04/02/2016,AmeyCespa (East) Limited,1133464,540.45,,The Grange,Third Party Payments,5010,Contracted Services,Wheelie Bin 1100Ltr Empty & Green Waste,
East Cambridgeshire District Council,10/02/2016,SLM Ltd,1133499,"9,230.50",,Paradise Pool,Third Party Payments,5010,Contracted Services,Management fee Feb 2016,
East Cambridgeshire District Council,08/02/2016,Veolia ES (UK) Ltd,1133502,795.54,,Recycling,Third Party Payments,5010,Contracted Services,Household refuse collection uplift April-Dec 2015,
East Cambridgeshire District Council,08/02/2016,Veolia ES (UK) Ltd,1133502,795.54,,Recycling Organic Waste,Third Party Payments,5010,Contracted Services,Household refuse collection uplift April-Dec 2015,
East Cambridgeshire District Council,08/02/2016,Veolia ES (UK) Ltd,1133502,"1,910.07",,Refuse Collection,Third Party Payments,5010,Contracted Services,Household refuse collection uplift April-Dec 2015,
East Cambridgeshire District Council,08/02/2016,Veolia ES (UK) Ltd,1133502,"1,151.51",,Weekly Collection Support Grant,Third Party Payments,5010,Contracted Services,Household refuse collection uplift April-Dec 2015,
East Cambridgeshire District Council,08/02/2016,Veolia ES (UK) Ltd,1133502,"1,168.31",,Street Cleansing,Third Party Payments,5010,Contracted Services,Household refuse collection uplift April-Dec 2015,
East Cambridgeshire District Council,15/02/2016,Veolia ES (UK) Ltd,1133560,"1,318.52",,Bulk Waste,Third Party Payments,5010,Contracted Services,Monthly Contract 1/1/16-31/1/16,
East Cambridgeshire District Council,15/02/2016,Veolia ES (UK) Ltd,1133560,"30,603.34",,Recycling,Third Party Payments,5010,Contracted Services,Monthly Contract 1/1/16-31/1/16,
East Cambridgeshire District Council,15/02/2016,Veolia ES (UK) Ltd,1133560,"30,603.34",,Recycling Organic Waste,Third Party Payments,5010,Contracted Services,Monthly Contract 1/1/16-31/1/16,
East Cambridgeshire District Council,15/02/2016,Veolia ES (UK) Ltd,1133560,"72,613.27",,Refuse Collection,Third Party Payments,5010,Contracted Services,Monthly Contract 1/1/16-31/1/16,
East Cambridgeshire District Council,15/02/2016,Veolia ES (UK) Ltd,1133560,"40,685.94",,Weekly Collection Support Grant,Third Party Payments,5010,Contracted Services,Monthly Contract 1/1/16-31/1/16,
East Cambridgeshire District Council,15/02/2016,Veolia ES (UK) Ltd,1133560,"44,943.26",,Street Cleansing,Third Party Payments,5010,Contracted Services,Monthly Contract 1/1/16-31/1/16,
East Cambridgeshire District Council,01/02/2016,Breckland Council,1133283,"37,120.00",,Council Tax Collection Costs,Third Party Payments,5020,ARP Services,Monthly provision 15/16,
East Cambridgeshire District Council,01/02/2016,Breckland Council,1133283,"46,399.00",,Housing Benefits,Third Party Payments,5020,ARP Services,Monthly provision 15/16,
East Cambridgeshire District Council,01/02/2016,Breckland Council,1133283,"9,280.00",,NNDR Collection costs,Third Party Payments,5020,ARP Services,Monthly provision 15/16,
East Cambridgeshire District Council,03/02/2016,Breckland Council,1133392,"15,378.63",,Housing Benefits,Third Party Payments,5020,ARP Services,Refresh Wyse Terminals cont 15/16,
East Cambridgeshire District Council,10/02/2016,Futureheat Plumbing Heating & Mechanical Services Ltd,1133510,"2,674.40",,Mandatory Disabled Fac.Grant,Capital Costs,C404,Home Imp.Grant. Final payment,Redacted Personal Data,
East Cambridgeshire District Council,10/02/2016,Futureheat Plumbing Heating & Mechanical Services Ltd,1133513,"2,674.40",,Mandatory Disabled Fac.Grant,Capital Costs,C404,Home Imp.Grant. Final payment,Redacted Personal Data,
East Cambridgeshire District Council,18/02/2016,Paul Barrow Builders  Ltd,1133568,"6,243.02",,Mandatory Disabled Fac.Grant,Capital Costs,C404,Home Imp.Grant. Final payment,Redacted Personal Data,
East Cambridgeshire District Council,03/02/2016,Gas Heating Services Ltd,1133394,"1,234.00",,Home Repair Assistance,Capital Costs,C405,Home Repair Grants,Redacted Personal Data,
East Cambridgeshire District Council,18/02/2016,Redacted Personal Data,1133569,"3,000.00",,Home Repair Assistance,Capital Costs,C405,Home Repair Grants,Redacted Personal Data,
East Cambridgeshire District Council,15/02/2016,AJ & R Scamblers & Sons Ltd,634856,"22,978.76",,Section 106 Agreements,Section 106,P360,Section 106 Rev Payments,Muthing Front Mounted Flail & Chipper,
East Cambridgeshire District Council,22/02/2016,Cheveley Parish Council,634906,"4,985.65",,Section 106 Agreements,Section 106,P360,Section 106 Rev Payments,S106 Rev Grant Road safety project CCC Highways,
East Cambridgeshire District Council,22/02/2016,Sutton Parish Council,634907,"4,642.35",,Section 106 Agreements,Section 106,P360,Section 106 Rev Payments,S106 Rev grant Glebe roof replacement,
,,,,"509,671.50",,,,,,,
